bitfinex/quotes_SOLUSD_20260311
["timestamp","ask_amount","ask_price","bid_price","bid_amount"]
[1773247561206,2.99688175,86.359,86.34,1e-08]
[1773247562312,3.00270647,86.35,86.34,1e-08]
[1773247562493,2.99688175,86.339,86.32,1e-08]
[1773247562883,11.57970309,86.358,86.322,3.12359413]
[1773247563078,2.99688175,86.357,86.322,3.12359413]
[1773247563280,11.57970309,86.358,86.322,3.12359413]
[1773247563894,11.57970309,86.358,86.331,3.12359413]
[1773247564095,2.99688175,86.357,86.331,3.12359413]
[1773247564606,2.99688175,86.355,86.33,11.58345413]
[1773247564809,2.99688175,86.349,86.323,3.12359413]
[1773247565503,2.99688175,86.339,86.32,1e-08]
[1773247566297,11.57980933,86.358,86.322,3.12359413]
[1773247566496,2.99688175,86.357,86.322,3.12359413]
[1773247566714,1.44694347,86.389,86.351,3.12359413]
[1773247567005,11.57474684,86.395,86.361,3.12359413]
[1773247567212,2.99688175,86.394,86.361,3.12359413]
[1773247567716,2.99688175,86.389,86.353,3.12359413]
[1773247568702,11.57474684,86.395,86.361,3.12359413]
[1773247568914,2.99688175,86.394,86.361,3.12359413]
[1773247569589,11.57474684,86.395,86.354,11.58023947]
[1773247569590,2.99688175,86.389,86.354,11.58023947]
[1773247569907,2.99688175,86.389,86.345,3.12359413]
[1773247570211,2.99688175,86.379,86.345,3.12359413]
[1773247570794,11.57702192,86.378,86.351,3.12359413]
[1773247571109,11.57702192,86.378,86.345,11.58144652]
[1773247571110,2.99688175,86.377,86.345,11.58144652]
[1773247571697,2.99688175,86.377,86.346,3.12359413]
[1773247571891,2.99688175,86.377,86.35,3.00270647]
[1773247572287,2.99688175,86.385,86.351,3.12359413]
[1773247573001,2.99688175,86.383,86.352,14.70410181]
[1773247573212,2.99688175,86.383,86.353,3.12359413]
[1773247573521,10.27199522,86.399,86.371,3.12359413]
[1773247573815,11.57434199,86.398,86.371,3.12359413]
[1773247573995,2.99688175,86.397,86.36,3.00270647]
[1773247574193,2.99688175,86.397,86.356,3.12359413]
[1773247574614,2.99688175,86.397,86.36,3.00270647]
[1773247575115,2.99688175,86.395,86.362,3.12359413]
[1773247575619,11.57099383,86.423,86.381,3.12359413]
[1773247575800,11.57099383,86.423,86.391,3.12359413]
[1773247576004,2.99688175,86.419,86.391,3.12359413]
[1773247577111,2.99688175,86.417,86.382,3.12359413]
[1773247577415,3.00270647,86.41,86.373,3.12359413]
[1773247577617,2.99688175,86.409,86.373,14.70127066]
[1773247578004,2.99688175,86.399,86.364,14.70238694]
[1773247578510,2.99688175,86.416,86.371,3.12359413]
[1773247578699,2.99688175,86.416,86.381,3.12359413]
[1773247579095,11.57206503,86.415,86.382,11.57648584]
[1773247579418,2.99688175,86.427,86.391,3.12359413]
[1773247579595,2.99688175,86.427,86.4,3.00270647]
[1773247579796,2.99688175,86.427,86.401,3.07975671]
[1773247580197,3.00270647,86.44,86.401,3.07975671]
[1773247580409,3.19432424,86.444,86.41,6.08246318]
[1773247580608,11.56925355,86.436,86.411,3.07975671]
[1773247581114,3.19432424,86.435,86.411,3.07975671]
[1773247581323,11.56952125,86.434,86.402,3.07975671]
[1773247582115,11.56905351,86.438,86.41,7.49950872]
[1773247582318,11.56925355,86.436,86.411,3.07975671]
[1773247582727,3.19432424,86.445,86.411,3.07975671]
[1773247583022,3.19432424,86.435,86.403,3.07975671]
[1773247583623,3.19432424,86.463,86.421,3.07975671]
[1773247583921,3.19432424,86.459,86.43,10.57926543]
[1773247584115,40.47787016,86.467,86.431,3.07975671]
[1773247584293,11.56510576,86.467,86.431,3.07975671]
[1773247584495,11.56510576,86.467,86.44,7.49950872]
[1773247584702,11.56454385,86.472,86.441,3.07975671]
[1773247585019,3.19432424,86.471,86.441,3.07975671]
[1773247585613,11.56470452,86.47,86.441,3.07975671]
[1773247585816,3.19432424,86.459,86.42,10.57926543]
[1773247586016,3.19432424,86.459,86.421,3.07975671]
[1773247586517,7.3116271,86.477,86.45,7.49950872]
[1773247586721,11.56390212,86.476,86.45,3.07975671]
[1773247586906,3.19432424,86.475,86.45,3.07975671]
[1773247587101,7.3116271,86.477,86.45,10.57926543]
[1773247587329,7.3116271,86.477,86.451,3.07975671]
[1773247587623,11.56390212,86.476,86.451,3.07975671]
[1773247587823,11.56390212,86.476,86.452,11.56711238]
[1773247588600,7.3116271,86.477,86.453,3.07975671]
[1773247588807,11.56069364,86.5,86.471,3.07975671]
[1773247589522,1.44493636,86.509,86.481,3.07975671]
[1773247589707,11.55962454,86.508,86.481,3.07975671]
[1773247589908,3.19432424,86.507,86.474,11.56408848]
[1773247590833,3.19432424,86.507,86.475,3.07975671]
[1773247591521,3.19432424,86.507,86.481,3.07975671]
[1773247591912,3.19432424,86.507,86.482,11.56309983]
[1773247592115,3.19432424,86.507,86.482,14.64285654]
[1773247592314,0.2,86.51,86.483,3.07975671]
[1773247593024,0.2,86.51,86.491,3.07975671]
[1773247594018,11.55949092,86.509,86.491,3.07975671]
[1773247594422,3.19432424,86.508,86.471,3.07975671]
[1773247594930,3.19432424,86.508,86.47,7.49950872]
[1773247594931,3.19432424,86.508,86.473,3.07975671]
[1773247595229,0.2,86.51,86.48,7.49950872]
[1773247595427,0.2,86.51,86.481,3.07975671]
[1773247595941,3.19432424,86.506,86.472,3.07975671]
[1773247596231,3.19432424,86.506,86.474,11.56406896]
[1773247596603,3.19432424,86.489,86.445,3.07975671]
[1773247596810,3.19432424,86.489,86.447,3.07975671]
[1773247597008,3.19432424,86.459,86.429,3.07975671]
[1773247597213,3.19432424,86.459,86.425,11.57068447]
[1773247597452,7.49950872,86.47,86.43,7.49950872]
[1773247597738,3.19432424,86.477,86.441,3.07975671]
[1773247598037,11.56390212,86.476,86.443,3.07975671]
[1773247598216,28.90407223,86.494,86.461,3.07975671]
[1773247598420,3.19432424,86.492,86.461,3.07975671]
[1773247598727,3.19432424,86.489,86.45,7.49950872]
[1773247599513,11.56162926,86.493,86.46,7.49950872]
[1773247600247,3.19432424,86.498,86.461,40.48067914]
[1773247600531,11.56082729,86.499,86.461,40.48067914]
[1773247600532,11.56082729,86.499,86.47,7.49950872]
[1773247600735,11.56082729,86.499,86.471,3.00455908]
[1773247601626,2.97709791,86.489,86.454,11.56675694]
[1773247601828,2.97709791,86.489,86.455,3.00455908]
[1773247602032,2.97709791,86.489,86.462,14.57033363]
[1773247602333,2.97709791,86.487,86.444,3.00455908]
[1773247602520,2.97709791,86.479,86.445,14.57260812]
[1773247602727,2.97709791,86.469,86.438,11.56898586]
[1773247603032,2.97709791,86.487,86.451,3.00455908]
[1773247605125,2.97709791,86.485,86.452,14.57167146]
[1773247605431,2.97709791,86.496,86.461,3.00455908]
[1773247605831,7.49950872,86.49,86.453,3.00455908]
[1773247606023,2.97709791,86.489,86.453,3.00455908]
[1773247607146,46.2336633,86.518,86.44,11.56870583]
[1773247607147,7.49950872,86.47,86.44,11.56870583]
[1773247607439,2.97709791,86.469,86.436,11.56925155]
[1773247607868,2.97709791,86.469,86.434,11.56952125]
[1773247608042,2.97709791,86.469,86.433,3.00455908]
[1773247608235,2.97709791,86.459,86.422,3.00455908]
[1773247609035,2.97709791,86.457,86.42,11.57131995]
[1773247610225,3.1168144,86.455,86.414,14.56572816]
[1773247611444,3.1168144,86.455,86.415,2.99352922]
[1773247612023,3.1168144,86.485,86.441,2.99352922]
[1773247612219,11.56283243,86.484,86.452,11.56711238]
[1773247612437,11.56283243,86.484,86.452,14.5606416]
[1773247612644,14.67964683,86.484,86.452,14.5606416]
[1773247613541,3.1168144,86.492,86.461,2.99352922]
[1773247614230,11.56096094,86.498,86.47,7.49950872]
[1773247614542,11.56017651,86.504,86.48,7.49950872]
[1773247615043,18.77290762,86.501,86.48,7.49950872]
[1773247616245,18.77290762,86.501,86.481,11.56323354]
[1773247616538,18.77290762,86.501,86.477,11.56371152]
[1773247616921,7.21227844,86.501,86.48,7.49950872]
[1773247617244,7.21227844,86.501,86.477,11.56371152]
[1773247617245,3.1168144,86.5,86.477,11.56371152]
[1773247617824,3.1168144,86.5,86.477,40.47313252]
[1773247618023,1e-08,86.501,86.491,2.99352922]
[1773247618231,1e-08,86.501,86.493,2.99352922]
[1773247618431,1e-08,86.51,86.493,2.99352922]
[1773247619054,1.54441876,86.54,86.502,2.86185834]
[1773247619348,3.1168144,86.538,86.51,7.48747274]
[1773247619550,3.1168144,86.538,86.511,2.86185834]
[1773247619756,3.1168144,86.538,86.492,40.46617027]
[1773247619929,3.1168144,86.538,86.5,7.48747274]
[1773247620124,3.1168144,86.538,86.51,7.48747274]
[1773247620551,0.1,86.54,86.511,2.86226087]
[1773247620754,3.1168144,86.538,86.503,2.86226087]
[1773247620940,3.1168144,86.538,86.502,11.56042634]
[1773247621958,3.1168144,86.538,86.5,7.48747274]
[1773247622262,3.1168144,86.527,86.492,11.56175214]
[1773247622560,3.1168144,86.527,86.48,28.90811479]
[1773247622561,3.1168144,86.527,86.487,11.56230373]
[1773247622728,3.1168144,86.527,86.49,7.48747274]
[1773247622930,11.55559275,86.539,86.511,2.86344095]
[1773247623154,3.1168144,86.538,86.501,2.86344095]
[1773247623460,3.1168144,86.538,86.51,10.35091369]
[1773247623636,3.1168144,86.538,86.511,2.86344095]
[1773247624435,0.1,86.54,86.52,7.48747274]
[1773247624744,0.1,86.54,86.513,2.86383097]
[1773247625839,3.1168144,86.557,86.513,2.76459761]
[1773247626042,3.1168144,86.557,86.52,7.48747274]
[1773247626549,11.5532141,86.556,86.521,2.76459761]
[1773247626730,11.5532141,86.556,86.523,2.76459761]
[1773247626935,3.1168144,86.555,86.523,2.76459761]
[1773247628051,0.2,86.56,86.534,2.76534675]
[1773247628254,3.1168144,86.558,86.52,7.48747274]
[1773247628548,3.1168144,86.539,86.497,11.56096624]
[1773247628730,3.1168144,86.539,86.5,7.48747274]
[1773247628927,3.1168144,86.539,86.497,11.56096624]
[1773247629131,3.1168144,86.539,86.5,7.48747274]
[1773247629337,0.2,86.56,86.53,10.25318761]
[1773247629545,0.2,86.56,86.54,7.48747274]
[1773247629747,3.1168144,86.558,86.521,2.76571487]
[1773247629943,3.1168144,86.558,86.53,7.48747274]
[1773247630144,3.1168144,86.556,86.51,7.48747274]
[1773247630459,3.1168144,86.549,86.511,14.32530245]
[1773247630759,3.1168144,86.549,86.52,7.48747274]
[1773247631255,0.2,86.56,86.531,2.76642976]
[1773247631553,3.1168144,86.559,86.53,7.48747274]
[1773247632059,3.1168144,86.559,86.532,2.76677672]
[1773247632257,0.2,86.56,86.54,7.48747274]
[1773247633553,0.2,86.56,86.542,2.76711969]
[1773247634131,11.75278171,86.56,86.542,2.76711969]
[1773247634633,7.21904054,86.569,86.551,2.76745872]
[1773247634842,3.1168144,86.586,86.55,7.48747274]
[1773247635145,3.1168144,86.579,86.541,11.5552166]
[1773247635335,3.1168144,86.569,86.526,2.56779386]
[1773247635541,3.1168144,86.567,86.53,7.48747274]
[1773247636871,1.70387822,86.609,86.561,2.99352922]
[1773247637037,11.64742238,86.6,86.574,2.99352922]
[1773247637542,11.64742238,86.6,86.538,0.56529874]
[1773247637543,3.1168144,86.597,86.56,7.48747274]
[1773247637743,0.1,86.6,86.57,7.48747274]
[1773247638354,1e-08,86.609,86.59,7.48747274]
[1773247638555,14.49156541,86.638,86.6,7.48747274]
[1773247638852,3.1168144,86.631,86.547,8.51860971]
[1773247639051,3.1168144,86.631,86.463,12.55126495]
[1773247639052,3.1168144,86.631,86.59,7.48747274]
[1773247639247,3.1168144,86.631,86.6,7.48747274]
[1773247639662,11.54334526,86.63,86.6,7.48747274]
[1773247639960,14.6262718,86.63,86.6,19.03468784]
[1773247640260,3.08292654,86.63,86.6,19.03468784]
[1773247640652,3.08292654,86.63,86.6,7.48747274]
[1773247640860,3.08292654,86.619,86.58,11.55001155]
[1773247641042,3.08292654,86.619,86.59,7.48747274]
[1773247641248,3.08292654,86.619,86.58,19.03748429]
[1773247641738,3.08292654,86.617,86.58,19.03748429]
[1773247642259,3.08292654,86.617,86.541,46.22083399]
[1773247642260,11.54281229,86.634,86.6,7.48747274]
[1773247642553,3.08292654,86.633,86.591,2.59392294]
[1773247642859,3.08292654,86.629,86.6,7.48747274]
[1773247643062,11.54281229,86.634,86.61,7.48747274]
[1773247643441,3.08292654,86.633,86.601,2.5946768]
[1773247643840,3.08292654,86.631,86.602,11.54707743]
[1773247644457,3.08292654,86.631,86.591,2.59543438]
[1773247644765,3.08292654,86.629,86.591,11.54853299]
[1773247644947,3.08292654,86.619,86.582,2.59618325]
[1773247645142,3.08292654,86.628,86.591,2.59618325]
[1773247645552,3.08292654,86.628,86.6,7.48747274]
[1773247645754,11.54250352,86.637,86.603,2.59618325]
[1773247646148,17.57449195,86.638,86.61,7.48747274]
[1773247646354,3.08292654,86.636,86.602,11.54707743]
[1773247646560,3.08292654,86.629,86.585,11.54934457]
[1773247646955,3.08292654,86.619,86.581,11.54987609]
[1773247647143,3.08292654,86.619,86.58,7.48747274]
[1773247647465,98.11050704,86.637,86.57,19.03874432]
[1773247647466,3.08292654,86.609,86.57,19.03874432]
[1773247647657,3.08292654,86.599,86.56,11.55268022]
[1773247647973,3.08292654,86.597,86.551,11.55388152]
[1773247648543,3.08292654,86.569,86.53,7.48747274]
[1773247648863,3.08292654,86.569,86.54,7.48747274]
[1773247649064,10.57039928,86.59,86.551,2.59909371]
[1773247649245,1.44348468,86.596,86.561,2.59909371]
[1773247649445,11.54761079,86.598,86.561,2.59909371]
[1773247649654,3.08292654,86.597,86.561,2.59909371]
[1773247649962,3.08292654,86.595,86.562,11.55241329]
[1773247650650,3.08292654,86.595,86.562,14.15221385]
[1773247651265,3.08292654,86.595,86.57,7.48747274]
[1773247651448,7.48747274,86.61,86.571,0.56520397]
[1773247651449,3.08292654,86.609,86.571,0.56520397]
[1773247651653,3.08292654,86.609,86.57,10.08797202]
[1773247652369,3.08292654,86.607,86.571,11.55121229]
[1773247652673,3.08292654,86.599,86.558,11.55290106]
[1773247653350,3.08292654,86.599,86.557,2.60118998]
[1773247653556,3.08292654,86.579,86.546,11.55454902]
[1773247654349,11.55027836,86.578,86.546,11.55454902]
[1773247654671,14.6332049,86.578,86.546,11.55454902]
[1773247655250,14.6332049,86.578,86.54,36.37570841]
[1773247655251,3.08292654,86.577,86.542,11.55504731]
[1773247655465,3.08292654,86.569,86.531,11.55655198]
[1773247655966,3.08292654,86.559,86.522,11.55775409]
[1773247656369,3.08292654,86.557,86.521,2.60387434]
[1773247656871,11.55289543,86.559,86.521,2.60387434]
[1773247657164,3.08292654,86.569,86.531,2.60452628]
[1773247657370,3.08292654,86.569,86.517,28.89577294]
[1773247657572,3.08292654,86.562,86.53,10.09199902]
[1773247658047,3.08292654,86.562,86.53,7.48747274]
[1773247658260,11.5501521,86.579,86.55,7.48747274]
[1773247658461,11.5501521,86.579,86.543,2.60517072]
[1773247658847,14.63307864,86.579,86.543,2.60517072]
[1773247659053,3.08292654,86.578,86.543,2.60517072]
[1773247660052,3.08292654,86.597,86.56,7.48747274]
[1773247660256,3.08292654,86.596,86.562,11.55241329]
[1773247660458,11.54801085,86.595,86.563,2.60705998]
[1773247660861,3.23445236,86.594,86.557,11.55303271]
[1773247661066,11.54801085,86.595,86.541,11.5552166]
[1773247661067,3.23445236,86.579,86.541,11.5552166]
[1773247661474,3.23445236,86.579,86.541,14.16289192]
[1773247661675,3.23445236,86.579,86.541,11.5552166]
[1773247662053,3.23445236,86.579,86.542,2.6082836]
[1773247662257,3.23445236,86.577,86.533,2.6082836]
[1773247662457,7.48747274,86.57,86.533,2.6082836]
[1773247662657,7.48747274,86.57,86.531,11.55655198]
[1773247662658,3.23445236,86.569,86.531,11.55655198]
[1773247662858,3.23445236,86.559,86.531,11.55655198]
[1773247663776,3.23445236,86.549,86.511,11.55922368]
[1773247663960,3.23445236,86.549,86.501,11.56055999]
[1773247664276,14.79006954,86.538,86.501,11.56055999]
[1773247664477,3.23445236,86.537,86.501,14.17003926]
[1773247664776,3.23445236,86.537,86.481,0.56704474]
[1773247664777,3.23445236,86.529,86.482,2.60947927]
[1773247664967,3.23445236,86.509,86.473,11.5643033]
[1773247665476,3.23445236,86.509,86.472,2.61006682]
[1773247665874,3.23445236,86.509,86.47,7.48747274]
[1773247665875,3.23445236,86.499,86.462,2.61064763]
[1773247666077,3.23445236,86.499,86.47,7.48747274]
[1773247666464,3.23445236,86.499,86.471,11.56457078]
[1773247666774,3.23445236,86.499,86.471,40.47599773]
[1773247666979,3.23445236,86.509,86.471,40.47599773]
[1773247667573,3.23445236,86.509,86.471,11.56457078]
[1773247667915,3.23445236,86.518,86.472,2.61122176]
[1773247668255,3.23445236,86.518,86.472,2.11122176]
[1773247668580,14.79171603,86.526,86.49,7.48747274]
[1773247668778,3.23445236,86.525,86.48,7.48747274]
[1773247668960,3.23445236,86.509,86.47,7.48747274]
[1773247669160,3.23445236,86.509,86.471,11.56457078]
[1773247670272,3.28232276,86.507,86.471,11.56457078]
[1773247670584,3.28232276,86.489,86.456,43.23372681]
[1773247670776,3.28232276,86.489,86.456,31.66717914]
[1773247671285,3.28232276,86.489,86.457,11.56644343]
[1773247672165,7.48747274,86.49,86.456,31.66717914]
[1773247672166,3.28232276,86.487,86.461,11.56590832]
[1773247674888,3.28232276,86.485,86.457,11.56644343]
[1773247675789,3.28232276,86.485,86.46,7.48747274]
[1773247676190,3.28232276,86.485,86.457,11.56644343]
[1773247676869,3.28232276,86.493,86.461,2.11656865]
[1773247677078,3.28232276,86.507,86.47,7.48747274]
[1773247677282,3.28232276,86.507,86.48,7.48747274]
[1773247678390,3.28232276,86.524,86.49,7.48747274]
[1773247679387,3.28232276,86.522,86.487,11.56243134]
[1773247679690,3.28232276,86.509,86.463,2.11802567]
[1773247680072,3.28232276,86.499,86.452,2.11850024]
[1773247680381,3.28232276,86.499,86.397,46.29750698]
[1773247680382,3.28232276,86.469,86.422,0.56891442]
[1773247680564,3.28232276,86.459,86.417,11.57167544]
[1773247680770,3.28232276,86.449,86.42,7.4866021]
[1773247680970,3.28232276,86.47,86.43,9.60557145]
[1773247681189,3.28232276,86.469,86.43,9.60557145]
[1773247681487,3.28232276,86.457,86.417,11.57176907]
[1773247681870,3.28232276,86.457,86.42,7.4866021]
[1773247682077,11.56559977,86.464,86.43,7.4866021]
[1773247682386,3.28232276,86.467,86.43,7.4866021]
[1773247682885,3.28232276,86.476,86.436,2.11943307]
[1773247683087,11.56403584,86.475,86.44,7.4866021]
[1773247683382,7.4866021,86.47,86.431,11.56992282]
[1773247683581,3.28232276,86.469,86.431,11.56992282]
[1773247684677,40.47506157,86.473,86.419,11.5715294]
[1773247684678,3.28232276,86.459,86.419,11.5715294]
[1773247684982,3.28232276,86.459,86.43,7.4866021]
[1773247685166,3.28232276,86.459,86.42,7.4866021]
[1773247685571,3.28232276,86.457,86.421,11.57126161]
[1773247685773,11.56630965,86.458,86.41,0.2]
[1773247685774,3.28232276,86.439,86.41,0.2]
[1773247686068,3.28232276,86.439,86.411,11.57260071]
[1773247687179,3.28232276,86.439,86.41,0.2]
[1773247687488,3.28232276,86.439,86.411,11.57260071]
[1773247687665,3.28232276,86.449,86.411,11.57260071]
[1773247687869,3.28232276,86.449,86.411,13.69470638]
[1773247688083,3.28232276,86.448,86.411,13.69470638]
[1773247688289,3.28232276,86.448,86.411,11.57260071]
[1773247688483,3.28232276,86.448,86.41,0.2]
[1773247688869,40.48639462,86.449,86.41,0.2]
[1773247688870,3.28232276,86.439,86.41,0.2]
[1773247689672,3.28232276,86.437,86.411,11.57260071]
[1773247690411,7.4866021,86.45,86.412,2.12295616]
[1773247690412,3.28232276,86.446,86.412,2.12295616]
[1773247692275,14.85033379,86.446,86.413,11.57233286]
[1773247692590,3.28232276,86.445,86.413,11.57233286]
[1773247692890,3.28232276,86.454,86.42,7.4866021]
[1773247693185,3.28232276,86.449,86.413,11.57233286]
[1773247693587,3.28232276,86.449,86.42,7.4866021]
[1773247693784,3.28232276,86.449,86.414,2.1241956]
[1773247694192,3.28232276,86.447,86.41,0.2]
[1773247694391,3.28232276,86.447,86.411,11.57260071]
[1773247696175,11.56791523,86.446,86.411,11.57260071]
[1773247696381,3.28232276,86.445,86.411,11.57260071]
[1773247697776,3.28232276,86.452,86.42,7.4866021]
[1773247697978,3.28232276,86.452,86.43,7.4866021]
[1773247698184,3.28232276,86.452,86.421,2.12616824]
[1773247698391,3.28232276,86.452,86.42,7.4866021]
[1773247699902,3.27082934,86.45,86.421,11.57126161]
[1773247700080,3.27082934,86.439,86.41,0.2]
[1773247700279,3.27082934,86.439,86.411,11.57260071]
[1773247701903,3.27082934,86.437,86.411,11.57260071]
[1773247703096,3.27082934,86.437,86.41,0.2]
[1773247703398,3.27082934,86.429,86.41,0.2]
[1773247704201,3.27082934,86.439,86.41,11.77264156]
[1773247704402,3.27082934,86.439,86.41,19.25924366]
[1773247704604,3.27082934,86.439,86.41,11.77264156]
[1773247705687,3.27082934,86.439,86.41,0.2]
[1773247705901,3.27082934,86.437,86.41,0.2]
[1773247706083,3.27082934,86.437,86.411,11.57260071]
[1773247708302,3.27082934,86.437,86.396,28.93638212]
[1773247708303,7.4866021,86.43,86.394,11.57487387]
[1773247708500,7.4866021,86.41,86.381,11.57661985]
[1773247708696,1.44627382,86.429,86.381,11.57661985]
[1773247708697,3.27082934,86.409,86.381,11.57661985]
[1773247709001,3.27082934,86.409,86.371,11.57796019]
[1773247710207,3.27082934,86.409,86.372,2.13079431]
[1773247710588,3.27082934,86.42,86.381,2.13079431]
[1773247710805,10.75743144,86.42,86.381,2.13079431]
[1773247711106,3.27082934,86.419,86.381,2.13079431]
[1773247711801,3.27082934,86.418,86.382,13.70760805]
[1773247712189,3.27082934,86.418,86.383,2.13144635]
[1773247712594,3.27082934,86.399,86.371,11.57796019]
[1773247713909,3.27082934,86.397,86.366,11.57858172]
[1773247714518,3.27082934,86.397,86.371,11.57796019]
[1773247715412,3.27082934,86.397,86.359,2.13144635]
[1773247715613,40.51019698,86.398,86.35,36.43838591]
[1773247715614,3.27082934,86.389,86.351,2.13239659]
[1773247715797,3.27082934,86.389,86.363,11.57893057]
[1773247715998,40.51019698,86.398,86.351,2.13239659]
[1773247715999,3.27082934,86.387,86.359,11.57954132]
[1773247716214,3.27082934,86.387,86.363,11.57896143]
[1773247716511,3.27082934,86.387,86.351,2.13239659]
[1773247716512,3.27082934,86.387,86.352,11.58050768]
[1773247716914,11.5756818,86.388,86.34,0.1]
[1773247716915,3.27082934,86.379,86.34,0.1]
[1773247717110,3.27082934,86.369,86.34,0.1]
[1773247717319,3.27082934,86.359,86.33,0.2]
[1773247717508,3.27082934,86.359,86.331,11.58332464]
[1773247718117,11.57970309,86.358,86.331,11.58332464]
[1773247718318,11.57970309,86.358,86.33,0.2]
[1773247718319,3.27082934,86.357,86.33,0.2]
[1773247718520,3.27082934,86.357,86.32,1e-08]
[1773247718521,3.27082934,86.349,86.32,1e-08]
[1773247718710,3.27082934,86.339,86.322,19.62467274]
[1773247718911,3.27082934,86.339,86.32,1e-08]
[1773247719111,3.27082934,86.339,86.321,11.58466653]
[1773247719321,14.85053243,86.358,86.322,3.21865508]
[1773247719706,3.27082934,86.357,86.322,3.21865508]
[1773247719905,3.27082934,86.349,86.322,3.21865508]
[1773247720221,11.58104414,86.348,86.323,11.58439813]
[1773247720530,7.4866021,86.33,86.304,11.58684505]
[1773247721725,3.19099964,86.334,86.304,11.58684505]
[1773247721932,7.4866021,86.33,86.304,11.58684505]
[1773247722305,11.58359299,86.329,86.304,11.58684505]
[1773247723025,3.19099964,86.328,86.286,3.02899075]
[1773247723225,3.19099964,86.328,86.28,7.5866021]
[1773247723226,3.19099964,86.328,86.282,3.02899075]
[1773247723520,40.54257548,86.329,86.28,0.1]
[1773247723521,3.19099964,86.299,86.28,0.1]
[1773247724043,3.19099964,86.309,86.28,0.1]
[1773247724200,3.19099964,86.298,86.28,0.1]
[1773247724806,7.4866021,86.29,86.264,11.59232124]
[1773247725007,3.19099964,86.298,86.265,3.02899075]
[1773247726219,11.58788833,86.297,86.265,3.02899075]
[1773247726407,14.77888797,86.297,86.266,11.59205248]
[1773247727321,10.67760174,86.29,86.255,3.02899075]
[1773247728332,7.4866021,86.29,86.255,3.02899075]
[1773247728520,7.4866021,86.29,86.257,3.02899075]
[1773247728724,19.07421399,86.3,86.257,3.02899075]
[1773247729029,11.58636832,86.309,86.271,3.02899075]
[1773247729226,11.58579213,86.313,86.271,3.02899075]
[1773247729409,7.4866021,86.31,86.271,3.02899075]
[1773247729609,3.19099964,86.299,86.271,3.02899075]
[1773247730021,3.17078615,86.289,86.257,3.06383441]
[1773247730326,3.17078615,86.289,86.256,11.5933964]
[1773247730929,11.58761978,86.299,86.261,3.06383441]
[1773247731126,3.17078615,86.298,86.261,3.06383441]
[1773247731325,7.4866021,86.31,86.271,3.06383441]
[1773247731632,0.76099997,86.319,86.281,3.06383441]
[1773247731633,11.58516431,86.318,86.281,3.06383441]
[1773247732544,3.17078615,86.317,86.281,3.06383441]
[1773247733021,3.17078615,86.315,86.282,11.58990287]
[1773247733428,3.17078615,86.315,86.283,3.06383441]
[1773247734232,3.17078615,86.315,86.273,3.06383441]
[1773247735231,3.17078615,86.309,86.275,3.06383441]
[1773247736634,11.58560604,86.314,86.281,3.06383441]
[1773247737138,3.17078615,86.313,86.282,11.58990287]
[1773247737633,3.17078615,86.313,86.282,14.65373728]
[1773247738937,3.17078615,86.313,86.282,11.58990287]
[1773247739614,11.5858745,86.312,86.28,7.4866021]
[1773247739812,3.17078615,86.311,86.28,7.4866021]
[1773247740017,3.17078615,86.311,86.28,10.55043651]
[1773247740218,3.17078615,86.311,86.281,3.06383441]
[1773247740728,0.76099997,86.319,86.291,3.06383441]
[1773247741529,3.17078615,86.317,86.282,3.06383441]
[1773247741732,14.75612374,86.316,86.283,11.58976855]
[1773247742026,14.75612374,86.316,86.284,3.06383441]
[1773247742227,3.17078615,86.315,86.284,3.06383441]
[1773247742542,11.58533759,86.316,86.264,0.57483401]
[1773247742543,3.17078615,86.309,86.275,11.59073534]
[1773247742729,3.17078615,86.299,86.27,11.59142499]
[1773247744070,3.17078615,86.299,86.27,3.06383441]
[1773247744071,11.58775406,86.298,86.27,3.06383441]
[1773247744274,3.17078615,86.297,86.262,3.06383441]
[1773247744474,3.17078615,86.297,86.261,11.5927244]
[1773247744685,3.17078615,86.289,86.254,3.06383441]
[1773247745371,3.17078615,86.279,86.25,6.0731527]
[1773247745573,3.17078615,86.287,86.251,3.06383441]
[1773247746166,3.17078615,86.286,86.253,3.06383441]
[1773247747065,3.00931829,86.3,86.261,3.06383441]
[1773247747365,3.17078615,86.298,86.261,3.06383441]
[1773247747567,40.55666924,86.299,86.253,3.06383441]
[1773247747568,3.17078615,86.289,86.253,3.06383441]
[1773247748070,3.17078615,86.287,86.254,11.59366522]
[1773247748259,3.17078615,86.287,86.255,3.06383441]
[1773247748769,3.17078615,86.287,86.254,11.59366522]
[1773247748971,3.17078615,86.279,86.254,11.59366522]
[1773247750266,14.76122635,86.278,86.248,3.06383441]
[1773247750448,1.44826787,86.31,86.251,3.06383441]
[1773247750449,3.17078615,86.287,86.251,3.06383441]
[1773247750649,3.17078615,86.295,86.251,3.06383441]
[1773247750867,3.17078615,86.289,86.251,3.06383441]
[1773247751065,3.17078615,86.279,86.247,11.59460618]
[1773247752080,3.17078615,86.279,86.247,3.06383441]
[1773247752081,11.5904402,86.278,86.247,3.06383441]
[1773247752259,14.76009698,86.287,86.251,3.06383441]
[1773247753457,11.58867942,86.292,86.261,3.06383441]
[1773247753773,3.17078615,86.299,86.261,3.06383441]
[1773247754155,3.17078615,86.297,86.262,11.59259001]